Cogmind - Beta 11.1 @@@ ROGUE MODE // 2022.05.14 @ 11:17:23 Player: Demise Result: Destroyed by 8R-AWN with 8R-AWN's Boregun Performance ------------- Evolutions (0) 0 Regions Visited (3) 600 Robots Destroyed (26) 130 Value Destroyed (432) 432 Prototype IDs (27) 540 Alien Tech Used (0) 0 Bonus (-1016) -1016 TOTAL SCORE: 686 Bonus ------- Aligned with FarCom 300 Friendly Fire -1316 Cogmind --------- Core Integrity 0/250 Matter 262/300 Energy 100/100 System Corruption 0% Temperature Cool (0) Movement Rolling (80) Location -10/Exiles Parts ------- > --- POWER (1) -------- (None) > --- PROPULSION (2) --- Wheel > --- UTILITY (2) ------ Improved Weapon Shielding Light Armor Plating > --- WEAPON (2) ------- Light Assault Rifle Light Assault Rifle > --- INVENTORY (5) ---- Light Assault Rifle Light Assault Rifle Mini Grenade Launcher Peak State ------------ > --- POWER ------------ Ion Engine > --- PROPULSION ------- Wheel > --- UTILITY ---------- Large Storage Unit Improved Trap Extractor > --- WEAPON ----------- Light Assault Rifle Light Assault Rifle > --- INVENTORY -------- Improved Heat Sink Seismic Detector Improved Targeting Computer Improved Weapon Shielding Light Armor Plating Light Armor Plating Heavy Armor Plating Particle Gun Light Assault Rifle Light Assault Rifle Light Assault Rifle Mini Grenade Launcher Mini Grenade Launcher Great Maul [Rating: 11] Favorites ----------- Power Ion Engine Engine Ion Engine Propulsion Wheel Treads Light Treads Wheel Wheel Utility Large Storage Unit Device Seismic Detector Storage Large Storage Unit Processor Signal Interpreter Protection Light Armor Plating Weapon Light Assault Rifle Energy Gun Medium Laser Ballistic Gun Light Assault Rifle Launcher Mini Grenade Launcher Build | -11 -10 -10 -10 ------- Run | Scr Mat Min Exi Slots Evolved . | . . . . Power . | . . . . Propulsion . | . . . . Utility . | . . . . Weapon . | . . . . Parts Attached 35 | 6 14 5 10 Power 1 | 1 . . . Engine 1 | 1 . . . Core . | . . . . Reactor . | . . . . Propulsion 4 | 2 2 . . Treads 2 | 1 1 . . Leg . | . . . . Wheel 2 | 1 1 . . Hover . | . . . . Flight . | . . . . Utility 16 | 1 5 3 7 Device 5 | 1 1 1 2 Storage 2 | . 1 . 1 Processor 2 | . 2 . . Hackware . | . . . . Protection 7 | . 1 2 4 Artifact . | . . . . Weapon 14 | 2 7 2 3 Energy Gun 3 | 1 2 . . Energy Cannon . | . . . . Ballistic Gun 9 | 1 4 2 2 Ballistic Cannon . | . . . . Launcher 2 | . 1 . 1 Special Weapon . | . . . . Impact Weapon . | . . . . Slashing Weapon . | . . . . Piercing Weapon . | . . . . Special Melee Weapon . | . . . . Unidentified Prototypes . | . . . . Parts Lost 5 | . 1 1 3 Power 1 | . . . 1 Propulsion 2 | . 1 1 . Utility 1 | . . . 1 Weapon 1 | . . . 1 Highest Loss Streak 3 | . 1 1 3 To Critical Strikes 1 | . . . 1 Average Slot Usage (%) 92 | . 97 94 82 Engine 13 | . 14 14 12 Treads 8 | . 14 8 . Wheel 13 | . 12 14 14 Device 2 | . 6 . . Storage 11 | . 8 14 12 Processor 5 | . 10 4 . Protection 7 | . 2 8 14 Energy Gun 1 | . 2 . . Ballistic Gun 26 | . 25 28 25 Naked Turns . | . . . . Heaviest Build 31 | 9 28 31 30 Greatest Support 20 | 10 20 10 10 Greatest Overweight (x) 3 | . 2 3 2 Average Overweight (x) 1 | . . 2 1 Largest Inventory Capacity 15 | 5 15 15 15 Average Capacity 12 | 5 11 15 13 Most Carried 15 | 5 10 15 15 Average Carried 9 | 3 6 13 11 Final Capacity 15 | 5 15 15 5 Final Carried 15 | 4 10 15 3 Class Distribution -------------------- 100% | Mutant Dominant Class ---------------- Mutant | -10/Materials Mutant | -10/Mines Mutant | -10/Exiles Resources | -11 -10 -10 -10 ----------- Run | Scr Mat Min Exi Matter Collected 923 | 245 318 173 187 Remotely . | . . . . Salvage Created 776 | 127 437 212 . Parts 56 | 11 33 12 . Haulers Intercepted 1 | . 1 . . Recyclers Shooed 1 | . . 1 . Parts Field Recycled . | . . . . Retrieved Matter . | . . . . Parts Self-Destructed . | . . . . Prevented . | . . . . Kills | -11 -10 -10 -10 ------- Run | Scr Mat Min Exi Combat Hostiles Destroyed 17 | . 10 6 1 Guns 14 | . 8 6 . AOE 3 | . 2 . 1 Classes Destroyed 8 | 2 5 . 1 Worker 1 | . 1 . . Tunneler 3 | 3 . . . Hauler 1 | . 1 . . Recycler 1 | 1 . . . Watcher 3 | . 3 . . Swarmer 9 | . 3 6 . Grunt 7 | . 7 . . Assembled 1 | . . . 1 Best Kill Streak 4 | 4 4 2 1 Combat Bots Only 3 | . 3 2 1 Max Kills in Single Turn 2 | 1 2 1 1 Gunslinging . | . . . . Exploded 1 | . 1 . 1 Melee . | . . . . Uniques/NPCs Destroyed 1 | . . 1 . YI-UF0 (-10/Mines) Combat | -11 -10 -10 -10 -------- Run | Scr Mat Min Exi Damage Taken 1342 | . 520 135 687 Core 261 | . 118 17 126 Absorbed by Shields . | . . . . Redirected to Shielding 32 | . . . 32 Regen/Repaired (Parts) 108 | . 108 . . Core Remaining (%) 100 | 100 . . . Volleys Fired 145 | 7 56 38 44 Largest 2 | 2 2 2 2 Hottest 70 | 70 70 40 40 Shots Fired 266 | 14 107 76 69 Gun 258 | 14 103 76 65 Cannon . | . . . . Launcher 8 | . 4 . 4 Special . | . . . . Kinetic 229 | 7 81 76 65 Thermal 28 | 7 21 . . Explosive 8 | . 4 . 4 Electromagnetic 1 | . 1 . . Robot Hit Streak 19 | 5 11 11 19 Robot Miss Streak 4 | 1 4 3 3 Penetration Max . | . . . . Secondary Targets 2 | . 1 1 . Max Gunslinging Chain 1 | . 1 1 . Shots Hit Robots 175 | 8 70 48 49 Core Hits 62 | 5 31 15 11 Critical Kills . | . . . . Critical Parts Destroyed 1 | . . . 1 Critical Strikes 2 | . 1 . 1 Burn 1 | . 1 . . Destroy 1 | . . . 1 Melee Attacks . | . . . . Impact . | . . . . Slashing . | . . . . Piercing . | . . . . Sneak Attacks . | . . . . Combat Hostiles . | . . . . Follow-up Attacks . | . . . . Damage Inflicted 1943 | 95 903 501 444 Guns 1706 | 95 705 501 405 Cannons . | . . . . Explosions 237 | . 198 . 39 Melee . | . . . . Ramming . | . . . . Kinetic 1443 | 19 518 501 405 Thermal 251 | 76 175 . . Explosive 237 | . 198 . 39 Electromagnetic 12 | . 12 . . Impact . | . . . . Slashing . | . . . . Piercing . | . . . . Highest Corruption . | . . . . Average Corruption . | . . . . Corruption Purged . | . . . . Corruption Blocked . | . . . . Overload Shots . | . . . . Overflow Damage 21 | . 21 . . Projectiles . | . . . . Explosions 21 | . 21 . . Melee . | . . . . Knockbacks . | . . . . Impact . | . . . . Kinetic . | . . . . Secondary . | . . . . Self-Inflicted Damage . | . . . . Shots . | . . . . Rammed . | . . . . Targets Rammed . | . . . . Kicked . | . . . . Crushed . | . . . . Highest Temperature 280 | 90 280 12 6 Average Temperature 58 | 34 91 5 2 Received Heat Transfer 267 | . 267 . . Effects 2 | . 2 . . Interference 2 | . 2 . . Siege Activations . | . . . . Robots Corrupted . | . . . . Combat Hostiles . | . . . . Parts Fried . | . . . . Impact Corruptions . | . . . . Robots Melted . | . . . . Combat Hostiles . | . . . . Parts Melted 2 | . 2 . . Heat Transferred 777 | 222 555 . . Parts Sabotaged . | . . . . Parts Stolen . | . . . . Parts Stripped . | . . . . Power Chain Reactions . | . . . . Missiles Intercepted . | . . . . Alert | -11 -10 -10 -10 ------- Run | Scr Mat Min Exi Peak Influence 288 | 20 288 105 . Initial 13 | . 13 . . Average 88 | 4 116 57 . Maximum Alert Level 1 | . 1 . . Low Security (%) 91 | 100 85 100 . Level 1 8 | . 14 . . Level 2 . | . . . . Level 3 . | . . . . Level 4 . | . . . . Level 5 . | . . . . High Security . | . . . . Max Security . | . . . . Squads Dispatched 1 | . 1 . . Investigation 1 | . 1 . . Extermination . | . . . . Reinforcement . | . . . . Assault . | . . . . Garrison . | . . . . Intercept . | . . . . Searches Triggered . | . . . . Construction Impeded . | . . . . Haulers Reinforced . | . . . . Active Scanning Responses . | . . . . Cargo Convoy Interrupts . | . . . . Stealth | -11 -10 -10 -10 --------- Run | Scr Mat Min Exi Distress Signals 1 | . 1 . . Communications Jammed . | . . . . Distress Signals . | . . . . Times Spotted 31 | . 18 11 2 Peak Tracking Total 9 | . 5 3 9 Tactical Retreats 5 | . 2 3 . Traps | -11 -10 -10 -10 ------- Run | Scr Mat Min Exi Traps Triggered 1 | . 1 . . Indirectly . | . . . . Trap Hack Attempts . | . . . . Triggered . | . . . . Disarmed . | . . . . Reprogrammed 6 | . 6 . . Reused 5 | . . . 5 Traps Extracted . | . . . . Installed 5 | . . . 5 Triggered . | . . . . Most Traps Carried 5 | . . 5 5 Exploded 3 | . . . 3 Machines | -11 -10 -10 -10 ---------- Run | Scr Mat Min Exi Machines Disabled 3 | . . . 3 Max in Single Turn 2 | . . . 2 Machines Sabotaged . | . . . . Garrisons Compromised . | . . . . Overloaded Fab Kills . | . . . . Hacking | -11 -10 -10 -10 --------- Run | Scr Mat Min Exi Machines Accessed 12 | . 9 1 2 Terminals 8 | . 8 . . Fabricators . | . . . . Repair Stations 1 | . 1 . . Recycling Units . | . . . . Scanalyzers . | . . . . Garrison Access . | . . . . Total Hacks 41 | . 38 1 2 Successful 27 | . 24 1 2 Failed 13 | . 13 . . Catastrophic . | . . . . Database Lockouts 1 | . 1 . . Manual 25 | . 24 . 1 Terminals 32 | . 32 . . Fabricators . | . . . . Repair Stations 6 | . 6 . . Recycling Units . | . . . . Scanalyzers . | . . . . Garrison Access . | . . . . Terminal Hacks 16 | . 13 1 2 Record 1 | . . . 1 Robot Analysis 3 | . 3 . . Prototype ID Bank 2 | . 2 . . Open Door 1 | . . 1 . Branch Access Points 1 | . 1 . . Terminal Index 1 | . 1 . . Unreport Threat 2 | . 2 . . Locate Traps 1 | . 1 . . Reprogram Traps 2 | . 2 . . Hauler Manifests 1 | . 1 . . EX-Prototype ID Bank 1 | . . . 1 Fabricator Hacks . | . . . . Repair Station Hacks 5 | . 5 . . Scan Component 3 | . 3 . . Repair 2 | . 2 . . Recycling Unit Hacks . | . . . . Scanalyzer . | . . . . Garrison Access Hacks . | . . . . Unauthorized Hacks 6 | . 6 . . Terminals 6 | . 6 . . Botnet 5 | . 5 . . Operators 1 | . 1 . . Fabricators . | . . . . Repair Stations . | . . . . Recycling Units . | . . . . Scanalyzers . | . . . . Garrison Access . | . . . . Data Cores Recovered . | . . . . Used . | . . . . Hacking Detections 7 | . 7 . . Full Trace Events 2 | . 2 . . Feedback Events . | . . . . Feedback Blocked . | . . . . Robot Schematics Acquired . | . . . . Robots Built . | . . . . Authchips . | . . . . Time . | . . . . Total Robot Build Rating . | . . . . Part Schematics Acquired . | . . . . Parts Built . | . . . . Authchips . | . . . . Time . | . . . . Total Part Build Rating . | . . . . Parts Repaired 2 | . 2 . . Time 52 | . 52 . . Parts Recycled . | . . . . Recycled Matter . | . . . . Retrieved Matter . | . . . . Retrieved Components . | . . . . Parts Scanalyzed . | . . . . Part Schematics Acquired . | . . . . Parts Damaged . | . . . . Bothacking | -11 -10 -10 -10 ------------ Run | Scr Mat Min Exi Used RIF Installer . | . . . . Robots Hacked . | . . . . Non-combat . | . . . . Combat . | . . . . Robot Hacks Applied . | . . . . Relay Couplers Released . | . . . . Fabnet Peak Effective % . | . . . . Robots Rewired . | . . . . Allies Hacked . | . . . . Hacks Repelled . | . . . . Allies | -11 -10 -10 -10 -------- Run | Scr Mat Min Exi Total Allies . | . . . . Largest Group . | . . . . Highest-Rated Group . | . . . . Highest-Rated Ally . | . . . . Total Orders . | . . . . Ally Attacks . | . . . . Total Damage . | . . . . Kills . | . . . . Allies Corrupted . | . . . . Allies Melted . | . . . . Intel | -11 -10 -10 -10 ------- Run | Scr Mat Min Exi Robot Analysis Total 3 | . 3 . . Derelict Logs Recovered 2 | . . 2 . Drone Launches . | . . . . Drone Recoveries . | . . . . Exploration | -11 -10 -10 -10 ------------- Run | Scr Mat Min Exi Turns Passed 3112 | 69 1250 915 878 Spaces Moved 2080 | 46 722 694 618 Core 1 | 1 . . . Treads 184 | . 184 . . Legs . | . . . . Wheels 1895 | 45 538 694 618 Hover . | . . . . Flight . | . . . . Fastest Speed 50 | 50 80 110 80 Average Speed 117 | 79 130 113 109 Slowest Speed 240 | 80 240 125 110 Overloaded Moves . | . . . . Propulsion Burnouts . | . . . . Robots Hopped . | . . . . Cave-ins Triggered . | . . . . Exploration Rate (%) 66 | 4 93 99 70 Regions Visited 3 Branch Regions 2 Pre-discovered Areas 4 | . . 3 1 Known Exits Taken 1 | . 1 . . Unknown Exits Taken 2 | 1 . 1 . Scrap Searched 2 | . . 2 . Spaces Dug . | . . . . Terrain Destroyed 37 | . 25 . 12 Melee . | . . . . Projectile . | . . . . AOE 37 | . 25 . 12 Terrain Rammed . | . . . . Walls Destroyed . | . . . . Machines Disabled . | . . . . Actions | -11 -10 -10 -10 --------- Run | Scr Mat Min Exi Total 2523 | 63 936 755 769 Wait 188 | . 118 9 61 Move 2077 | 45 721 693 618 Hop . | . . . . Pick Up 34 | 5 14 6 9 Fast Attach 13 | 5 5 . 3 Attach 5 | 1 1 1 2 Detach 3 | . 2 1 . Swap 17 | . 8 4 5 Drop 36 | . 11 3 22 Fire 145 | 7 56 38 44 Melee . | . . . . Ram . | . . . . Kick . | . . . . Crush . | . . . . Escape Stasis . | . . . . Rewire . | . . . . Trap 5 | . . . 5 Miscellaneous . | . . . . Route ------- -11/Scrapyard -10/Materials (discovered 4 exits: *Mat x3 / *Min) -10/Mines (discovered 3 exits: *Mat x2 / *Exi) -10/Exiles (discovered 2 exits: [*Min x2]) History --------- Turn | Location | Event 25 | -11/Scrapyard | Discovered new exit (range 14) 70 | -11/Scrapyard | Entered Materials 138 | -10/Materials | Identified exit to Mines 261 | -10/Materials | Central database locked down 326 | -10/Materials | Discovered new exit (range 16) 343 | -10/Materials | Build established: Mutant 616 | -10/Materials | Discovered new exit (range 6) 642 | -10/Materials | Identified exit to Materials 677 | -10/Materials | Repaired Lgt. Assault Rifle 704 | -10/Materials | Repaired Lgt. Assault Rifle 1100 | -10/Materials | Discovered exit to Materials (range 15) 1320 | -10/Materials | Entered Mines 1325 | -10/Mines | Learned location of Zion (-6) 1367 | -10/Mines | YI-UF0 nonchalantly dropped a Grenade Launcher on the ground 1388 | -10/Mines | Destroyed YI-UF0 1446 | -10/Mines | Discovered exit to Materials (range 8) 1631 | -10/Mines | Met a Derelict who couldn't figure out how to use a Trap Extractor 1703 | -10/Mines | Discovered exit to Materials (range 12) 1715 | -10/Mines | Learned location of Storage (-8) 1846 | -10/Mines | Core integrity fell below 50% 2183 | -10/Mines | Found a hidden stash of uninstalled traps 2228 | -10/Mines | Deemed a non-threat by the Exiles lab entrance 2229 | -10/Mines | Discovered new exit (range 5) 2235 | -10/Mines | Entered Exiles 2252 | -10/Exiles | Discovered new exit (range 15) 2265 | -10/Exiles | Met 8R-AWN 2297 | -10/Exiles | Met EX-HEX 2357 | -10/Exiles | Met EX-DEC 2377 | -10/Exiles | Met EX-BIN 2392 | -10/Exiles | Aligned with FarCom system 2393 | -10/Exiles | Given EX-Vault access code 2519 | -10/Exiles | Opened EX-Vault 2525 | -10/Exiles | Found Trap Reconfigurator 2554 | -10/Exiles | Warned to stay clear of 0b10 Research branches 2632 | -10/Exiles | Discovered new exit (range 10) 2880 | -10/Exiles | Attacked by the Exiles 3083 | -10/Exiles | Core integrity fell below 20% 3105 | -10/Exiles | Lost 3 parts (1p1u1w) 3113 | -10/Exiles | Destroyed by 8R-AWN with 8R-AWN's Boregun Last Messages --------------- 03071_ Penetrated by HV Slug. 03071_ Critical hit (Destroy). 03071_ HV Slug penetrates Earth. 03073_ Extracted 2 matter. 03073_ Penetrated by HV Slug. 03073_ HV Slug penetrates Earth. 03074_ Penetrated by HV Slug. 03074_ Hvy. Armor Plating destroyed. 03074_ HV Slug penetrates Earth. 03075_ Extracted 10 matter. 03076_ Penetrated by HV Slug. 03076_ Acquired Imp. Weapon Shielding. 03077_ Penetrated by HV Slug. 03079_ HV Slug penetrates Machine. 03079_ HV Slug penetrates Wall. 03082_ Penetrated by HV Slug. 03092_ Critical hit (Destroy). 03096_ Penetrated by HV Slug. 03096_ Critical hit (Destroy). 03099_ Penetrated by HV Slug. Map ----- +----------------------------------------------------+ | ?????????????????????????????????????????????????? | | ?????????????????????????????????????????????????? | | ?????????#####???????????????????????????????????? | | ????????## ##??????????????????????????????????? | | ????????# #??????????????????????????????????? | | ????????# < #??????????????????????????????????? | | ????????# ]!! ###????????????????????????????????? | | ????????# !!/ #????????????????????????????????? | | ????????# ##????????????????????????????????? | | ????????## #?????????????????????????????????? | | ?????????# ##????????????????????????????????? | | ?????????## #????????????#######?????????????? | | ??????????# #######??????#!!! "#?????????????? | | ??????????# #""##?????# "#?????????????? | | ??????????## #?????# "#?????????????? | | ???????????##" ##???## ""#????????????## | | ???????????#"" #####" ""#???????????? | | ???????????#### ##" ""#????????????" | | ??????????????## #"" #??????????????" | | ???????????????#"## ##????????????"" | | ???????????????####### #####????????"" | | ?????????????????????### # #???????? | | ???????????????########" ##????????" | | ???????????????# !!""""" # #????????# | | ???????????????#! g"###" ####???### | | ???????????????#! !@ #?## "#####X# | | ???????????????#! ! !;#??# | | ???????????????# !"""" ;;;#??# % | | ???????????????########## # #?#### % %% | | ????????????????????????# ###????### % | | ????????????????????????# #????????### | | ????????????????????????# #??????????## | | ????????????????????????# #???????????## | | ????????????????????????# #????????????##" | | ????????????????????????# #?????????????#""" | | ????????????????????????? ?????????????##" | | ????????????????????????? ?????????????#"" | | ????????????????????????? ?????????????#""" | | ????????????????????????? ????????????#""" | | ????????????????????????? ????????????#""" | | ????????????????????????? ????????????#"" | | ?????????????????????????#????????????#""" | | ??????????????????????????????????????#"" | | ??????????????????????????????????????##"" | | ???????????????????????????????????????#"""" | | ????????????????????????????????????????# | | ????????????????????????????????????????#" | | ????????????????????????????????????????#"""" | | ????????????????????????????????????????#"" | | ?????????????????????????????????????????" | +----------------------------------------------------+ Best States ------------- Heat Dissipation 25 Energy Generation 10 Energy Capacity 250 Matter Stores 300 Matter Capacity 300 Sight Range 16 Terrain Scan Density 10 Armor Coverage 600 Weapon Shielding 66 Evasion (%) 44 Targeting Accuracy 6 Recoil Reduction 1 Trap Extractor Capacity 6 Item Schematics ----------------- None Robot Schematics ------------------ None Fabricated ------------ Nothing Alien Tech Used ----------------- None Achievements -------------- None Challenges ------------ None Game ------ Seed AntigravDrainedNullifier Manual? 0 Play Time 00:21:10 Cumulative 488.2 hours Start 2022.05.14 @ 10:56:22 End 2022.05.14 @ 11:17:23 Sessions 1 Manual Loads 0 Difficulty Rogue Special Mode None Game No. 404 Rogue 404 Adventurer 0 Explorer 0 Win Type - Total 3 Types 2/0/0/1/0/0/0/0/0 Lore% 69 Gallery% 79 Achievement% 66 Wizard Run 0 Options --------- ASCII 0 Keyboard 1 Movement Numpad Keybinds 0 Fullscreen 1 Font 12/Terminus Map View 83x54 Tactical HUD 1 Map Filters NONE Filters NONE Steam 1 RUN: 8469a38f-a68b-455b-95c7-9232f7515a53